fUSD/lending_fUSD_20250313
["ID","MTS","AMOUNT","RATE_DAILY","PERIOD"]
[356117888,1741909994870,-500.0,0.0002655,3]
[356117889,1741909994880,-500.0,0.0002655,3]
[356117890,1741909994890,-500.0,0.0002655,3]
[356117891,1741909994900,-1757.22,0.0002655,3]
[356117892,1741909994910,-500.0,0.0002655,3]
[356117893,1741909994920,-500.0,0.0002655,3]
[356117894,1741909994929,-1801.77,0.0002655,3]
[356117895,1741909994940,-500.0,0.0002655,3]
[356117896,1741909994950,-500.0,0.0002655,3]
[356117897,1741909994960,-500.0,0.0002655,3]
[356117898,1741909994969,-1126.34,0.0002655,3]
[356117899,1741909994979,-501.8,0.0002655,3]
[356117900,1741909994989,-500.0,0.0002655,3]
[356117901,1741909994998,-1962.2,0.0002655,3]
[356117902,1741909995008,-775.14,0.0002655,3]
[356117903,1741909995018,-500.0,0.0002655,3]
[356117904,1741909995027,-552.77,0.0002655,3]
[356117905,1741909995037,-500.0,0.0002655,3]
[356117906,1741909995047,-1313.89,0.0002655,3]
[356117907,1741909995056,-500.0,0.0002655,3]
[356117908,1741909995066,-500.0,0.0002655,3]
[356117909,1741909995075,-500.0,0.0002655,3]
[356117910,1741909995084,-500.0,0.0002655,3]
[356117911,1741909995094,-215.7170495,0.0002655,3]
[356117912,1741909995103,-1156.75,0.0002655,3]
[356117913,1741909995113,-500.0,0.0002655,3]
[356117914,1741909995123,-827.88,0.0002655,3]
[356117915,1741909995132,-500.0,0.0002655,3]
[356117916,1741909995143,-500.0,0.0002655,3]
[356117917,1741909995152,-895.24,0.0002655,3]
[356117918,1741909995162,-500.0,0.0002655,3]
[356117919,1741909995172,-1012.87,0.0002655,3]
[356117920,1741909995181,-1069.23,0.0002655,3]
[356117921,1741909995191,-605.55,0.0002655,3]
[356117922,1741909995201,-500.0,0.0002655,3]
[356117923,1741909995211,-1008.81,0.0002655,3]
[356117924,1741909995221,-866.31,0.0002655,3]
[356117925,1741909995231,-500.0,0.0002655,3]
[356117926,1741909995240,-500.0,0.0002655,3]
[356117927,1741909995249,-178.64298005,0.00026559,3]
[356117928,1741909995259,-500.0,0.00026559,3]
[356117929,1741909995268,-500.0,0.00026559,3]
[356117930,1741909995277,-500.0,0.00026559,3]
[356117931,1741909995287,-500.0,0.00026559,3]
[356117932,1741909995299,-527.55,0.00026559,3]
[356117933,1741909995308,-500.0,0.00026559,3]
[356117934,1741909995317,-500.0,0.00026559,3]
[356117935,1741909995327,-862.02,0.00026559,3]
[356117936,1741909995338,-500.0,0.00026559,3]
[356117937,1741909995348,-1562.75,0.00026559,3]
[356117938,1741909995357,-500.0,0.00026559,3]
[356117939,1741909995367,-500.0,0.00026559,3]
[356117940,1741909995377,-500.0,0.00026559,3]
[356117941,1741909995387,-598.34375042,0.00026559,3]
[356117942,1741909995396,-500.0,0.00026559,3]
[356117943,1741909995407,-500.0,0.00026559,3]
[356117944,1741909995417,-500.0,0.00026559,3]
[356117945,1741909995427,-500.0,0.00026559,3]
[356117946,1741909995436,-336.47633116,0.00026559,3]
[356117947,1741909995446,-500.0,0.00026559,3]
[356117948,1741909995455,-526.4,0.00026559,3]
[356117949,1741909995465,-500.0,0.00026559,3]
[356117950,1741909995477,-886.28,0.00026559,3]
[356117951,1741909995488,-500.0,0.00026559,3]
[356117952,1741909995498,-500.0,0.00026559,3]
[356117953,1741909995508,-1148.96,0.00026559,3]
[356117954,1741909995519,-500.0,0.00026559,3]
[356117955,1741909995529,-500.0,0.00026559,3]
[356117956,1741909995539,-521.42,0.00026559,3]
[356117957,1741909995550,-500.0,0.00026559,3]
[356117958,1741909995561,-500.0,0.00026559,3]
[356117959,1741909995571,-535.24,0.00026559,3]
[356117960,1741909995580,-500.0,0.00026559,3]
[356117961,1741909995590,-500.0,0.00026559,3]
[356117962,1741909995601,-500.0,0.00026559,3]
[356117963,1741909995611,-500.0,0.00026559,3]
[356117964,1741909995620,-630.29,0.00026559,3]
[356117965,1741909995630,-500.0,0.00026559,3]
[356117966,1741909995641,-636.65,0.00026559,3]
[356117967,1741909995652,-500.0,0.00026559,3]
[356117968,1741909995662,-760.49,0.00026559,3]
[356117969,1741909995672,-500.0,0.00026559,3]
[356117970,1741909995682,-500.0,0.00026559,3]
[356117971,1741909995691,-766.74,0.00026559,3]
[356117972,1741909995703,-500.0,0.00026559,3]
[356117973,1741909995713,-1057.73,0.00026559,3]
[356117974,1741909995724,-500.0,0.00026559,3]
[356117975,1741909995734,-500.0,0.00026559,3]
[356117976,1741909995745,-760.28,0.00026559,3]
[356117977,1741909995755,-972.22,0.00026559,3]
[356117978,1741909995765,-492.09686429,0.00026559,3]
[356117979,1741909995775,-1260.65,0.00026559,3]
[356117980,1741909995784,-500.0,0.00026559,3]
[356117981,1741909995795,-500.0,0.00026559,3]
[356117982,1741909995805,-500.0,0.00026559,3]
[356117983,1741909995815,-702.58,0.00026559,3]
[356117984,1741909995824,-244.65806067,0.00026559,3]
[356117985,1741909995836,-500.0,0.00026559,3]
[356117986,1741909995846,-500.0,0.00026559,3]
[356117987,1741909995856,-556.69,0.00026559,3]
[356117988,1741909995866,-500.0,0.00026559,3]
[356117989,1741909995876,-1075.01,0.00026559,3]
[356117990,1741909995886,-500.0,0.00026559,3]
[356117991,1741909995896,-500.0,0.00026559,3]
[356117992,1741909995906,-2046.3,0.00026559,3]
[356117993,1741909995916,-500.0,0.00026559,3]
[356117994,1741909995926,-500.0,0.00026559,3]
[356117995,1741909995936,-500.0,0.00026559,3]
[356117996,1741909995946,-500.0,0.00026559,3]
[356117997,1741909995956,-574.02,0.00026559,3]
[356117998,1741909995967,-1112.24,0.00026559,3]
[356117999,1741909995976,-500.0,0.00026559,3]
[356118000,1741909995987,-566.64,0.00026559,3]
[356118001,1741909995998,-500.0,0.00026559,3]
[356118002,1741909996008,-500.0,0.00026559,3]
[356118003,1741909996018,-500.0,0.00026559,3]
[356118004,1741909996028,-1293.55,0.00026559,3]
[356118005,1741909996039,-2132.45,0.00026559,3]
[356118006,1741909996048,-500.0,0.00026559,3]
[356118007,1741909996059,-500.0,0.00026559,3]
[356118008,1741909996069,-584.56484211,0.00026559,3]
[356118009,1741909996079,-500.0,0.00026559,3]
[356118010,1741909996090,-500.0,0.00026559,3]
[356118011,1741909996100,-500.0,0.00026559,3]
[356118012,1741909996110,-1111.12,0.00026559,3]
[356118013,1741909996120,-1817.19,0.00026559,3]
[356118014,1741909996130,-639.93,0.00026559,3]
[356118015,1741909996140,-500.0,0.00026559,3]
[356118016,1741909996151,-500.0,0.00026559,3]
[356118017,1741909996161,-500.0,0.00026559,3]
[356118018,1741909996171,-500.0,0.00026559,3]
[356118019,1741909996183,-525.47,0.00026559,3]
[356118020,1741909996192,-805.69,0.00026559,3]
[356118021,1741909996203,-500.0,0.00026559,3]
[356118022,1741909996212,-1134.12,0.00026559,3]
[356118023,1741909996222,-4021.1,0.00026559,3]
[356118024,1741909996232,-1149.36,0.00026559,3]
[356118025,1741909996242,-686.34,0.00026559,3]
[356118026,1741909996252,-1845.17,0.00026559,3]
[356118027,1741909996262,-1365.3,0.00026559,3]
[356118028,1741909996273,-500.0,0.00026559,3]
[356118029,1741909996283,-500.0,0.00026559,3]
[356118030,1741909996293,-658.04,0.00026559,3]
[356118031,1741909996302,-1356.05,0.00026559,3]
[356118032,1741909996312,-835.91,0.00026559,3]
[356118033,1741909996323,-530.22,0.00026559,3]
[356118034,1741909996333,-517.5,0.00026559,3]
[356118035,1741909996343,-500.0,0.00026559,3]
[356118036,1741909996354,-1735.89,0.00026559,3]
[356118037,1741909996364,-718.97,0.00026568,3]
[356118038,1741909996374,-544.27174283,0.00026576,3]
[356118039,1741909996385,-879.64,0.00026576,3]
[356118040,1741909996395,-500.0,0.00026576,3]
[356118041,1741909996405,-535.9,0.00026576,3]
[356118042,1741909996416,-621.59,0.00026576,3]
[356118043,1741909996426,-548.81,0.00026576,3]
[356118044,1741909996438,-4044.81,0.00026576,3]
[356118045,1741909996717,-619.96,0.00026576,3]
[356118046,1741909996727,-500.0,0.00026576,3]
[356118047,1741909996737,-599.39,0.00026576,3]
[356118048,1741909996747,-500.0,0.00026576,3]
[356118049,1741909996757,-568.45,0.00026576,3]
[356118050,1741909996767,-1007.44,0.00026576,3]
[356118051,1741909996777,-596.06,0.00026576,3]
[356118052,1741909996787,-500.0,0.00026576,3]
[356118053,1741909996797,-1472.58,0.00026576,3]
[356118054,1741909996806,-575.02,0.00026576,3]
[356118055,1741909996815,-1336.48,0.00026576,3]
[356118056,1741909996826,-500.0,0.00026576,3]
[356118057,1741909996836,-500.0,0.00026576,3]
[356118058,1741909996845,-1207.46,0.00026576,3]
[356118059,1741909996856,-500.0,0.00026576,3]
[356118060,1741909996866,-1240.71,0.00026576,3]
[356118061,1741909996876,-614.09,0.00026576,3]
[356118062,1741909996886,-1905.32,0.00026576,3]
[356118063,1741909996896,-500.0,0.00026576,3]
[356118064,1741909996906,-1560.68,0.00026576,3]
[356118065,1741909996916,-500.0,0.00026576,3]
[356118066,1741909996926,-500.0,0.00026576,3]
[356118067,1741909996936,-500.0,0.00026576,3]
[356118068,1741909996946,-500.0,0.00026576,3]
[356118069,1741909996955,-1715.23,0.00026576,3]
[356118070,1741909996965,-500.0,0.00026576,3]
[356118071,1741909996975,-505.01,0.00026576,3]
[356118072,1741909996985,-500.0,0.00026576,3]
[356118073,1741909996996,-1834.44,0.00026576,3]
[356118074,1741909997006,-500.0,0.00026576,3]
[356118075,1741909997016,-500.0,0.00026576,3]
[356118076,1741909997026,-500.0,0.00026576,3]
[356118077,1741909997037,-500.0,0.00026576,3]
[356118078,1741909997047,-866.31,0.00026576,3]
[356118079,1741909997057,-1115.1,0.00026576,3]
[356118080,1741909997067,-528.68,0.00026576,3]
[356118081,1741909997077,-500.0,0.00026576,3]
[356118082,1741909997089,-500.0,0.00026576,3]
[356118083,1741909997099,-1673.6,0.00026576,3]
[356118084,1741909997110,-1282.18,0.00026576,3]
[356118085,1741909997120,-500.0,0.00026576,3]
[356118086,1741909997130,-1557.42,0.00026576,3]
[356118087,1741909997140,-521.16,0.00026576,3]
[356118088,1741909997150,-512.73,0.00026576,3]
[356118089,1741909997160,-1671.92,0.00026576,3]
[356118090,1741909997170,-1037.45,0.00026576,3]
[356118091,1741909997180,-808.39,0.00026576,3]
[356118092,1741909997189,-500.0,0.00026576,3]
[356118093,1741909997199,-630.13,0.00026576,3]
[356118094,1741909997210,-500.0,0.00026576,3]
[356118095,1741909997222,-570.0,0.00026576,3]
[356118096,1741909997233,-500.0,0.00026576,3]
[356118097,1741909997242,-500.0,0.00026576,3]
[356118098,1741909997252,-1409.73,0.00026576,3]
[356118099,1741909997261,-500.0,0.00026576,3]
[356118100,1741909997272,-774.3,0.00026576,3]
[356118101,1741909997283,-1515.34,0.00026576,3]
[356118102,1741909997293,-586.53,0.00026576,3]
[356118103,1741909997303,-929.37,0.00026576,3]
[356118104,1741909997312,-870.82,0.00026576,3]
[356118105,1741909997322,-649.95,0.00026576,3]
[356118106,1741909997332,-500.0,0.00026576,3]
[356118107,1741909997344,-592.52,0.00026576,3]
[356118108,1741909997354,-708.03,0.00026576,3]
[356118109,1741909997364,-531.66,0.00026576,3]
[356118110,1741909997373,-500.0,0.00026577,3]
[356118111,1741909997382,-500.0,0.00026577,3]
[356118112,1741909997392,-627.17,0.00026577,3]
[356118113,1741909997401,-515.44,0.00026577,3]
[356118114,1741909997412,-500.0,0.00026577,3]
[356118115,1741909997421,-909.42,0.00026577,3]
[356118116,1741909997431,-767.58,0.00026577,3]
[356118117,1741909997441,-500.0,0.00026577,3]
[356118118,1741909997450,-605.42,0.00026577,3]
[356118119,1741909997459,-500.0,0.00026577,3]
[356118120,1741909997469,-500.0,0.00026577,3]
[356118121,1741909997482,-500.0,0.00026577,3]
[356118122,1741909997491,-670.75,0.00026577,3]
[356118123,1741909997501,-500.0,0.00026577,3]
[356118124,1741909997511,-500.0,0.00026577,3]
[356118125,1741909997520,-500.0,0.00026577,3]
[356118126,1741909997530,-500.0,0.00026577,3]
[356118127,1741909997539,-500.0,0.00026577,3]
[356118128,1741909997549,-500.0,0.00026577,3]
[356118129,1741909997559,-500.0,0.00026577,3]
[356118130,1741909997570,-1567.35,0.00026577,3]
[356118131,1741909997579,-611.92926844,0.00026577,3]
[356118132,1741909997589,-644.21,0.00026577,3]
[356118133,1741909997600,-500.0,0.00026577,3]
[356118134,1741909997609,-1664.02,0.00026577,3]
[356118135,1741909997619,-500.0,0.00026577,3]
[356118136,1741909997629,-500.0,0.00026577,3]
[356118137,1741909997638,-500.0,0.00026577,3]
[356118138,1741909997648,-968.14,0.00026577,3]
[356118139,1741909997658,-1046.93,0.00026577,3]
[356118140,1741909997668,-773.75,0.00026577,3]
[356118141,1741909997678,-500.0,0.00026577,3]
[356118142,1741909997688,-500.0,0.00026577,3]
[356118143,1741909997698,-500.0,0.00026577,3]
[356118144,1741909997707,-500.0,0.00026577,3]
[356118145,1741909997718,-500.0,0.00026577,3]
[356118146,1741909997728,-798.27,0.00026577,3]
[356118147,1741909997737,-500.0,0.00026577,3]
[356118148,1741909997747,-680.76,0.00026577,3]
[356118149,1741909997756,-500.0,0.00026577,3]
[356118150,1741909997766,-500.0,0.00026577,3]
[356118151,1741909997776,-500.0,0.00026577,3]
[356118152,1741909997785,-500.0,0.00026577,3]
[356118153,1741909997795,-500.0,0.00026577,3]
[356118154,1741909997804,-500.0,0.00026577,3]
[356118155,1741909997815,-1424.33,0.00026577,3]
[356118156,1741909997824,-500.0,0.00026577,3]
[356118157,1741909997834,-500.0,0.00026577,3]
[356118158,1741909997845,-500.0,0.00026577,3]
[356118159,1741909997855,-500.0,0.00026577,3]
[356118160,1741909997867,-550.26,0.00026577,3]
[356118161,1741909997878,-500.0,0.00026577,3]
[356118162,1741909997888,-500.0,0.00026577,3]
[356118163,1741909997898,-748.01,0.00026577,3]
[356118164,1741909997909,-500.0,0.00026577,3]
[356118165,1741909997919,-500.0,0.00026577,3]
[356118166,1741909997929,-854.97,0.00026577,3]
[356118167,1741909997940,-500.0,0.00026577,3]
[356118168,1741909997950,-1135.48,0.00026577,3]
[356118169,1741909997960,-500.0,0.00026577,3]
[356118170,1741909997970,-1460.13,0.00026577,3]
[356118171,1741909997980,-500.0,0.00026577,3]
[356118172,1741909997990,-500.0,0.00026577,3]
[356118173,1741909998000,-500.0,0.00026577,3]
[356118174,1741909998010,-539.91,0.00026577,3]
[356118175,1741909998020,-500.0,0.00026577,3]
[356118176,1741909998030,-500.0,0.00026577,3]
[356118177,1741909998041,-500.0,0.00026577,3]
[356118178,1741909998052,-500.0,0.00026577,3]
[356118179,1741909998062,-500.0,0.00026577,3]
[356118180,1741909998072,-1590.08,0.00026577,3]
[356118181,1741909998083,-500.0,0.00026577,3]
[356118182,1741909998097,-521.95,0.00026577,3]
[356118183,1741909998107,-1077.24,0.00026577,3]
[356118184,1741909998118,-500.0,0.00026577,3]
[356118185,1741909998128,-1570.33,0.00026577,3]
[356118186,1741909998139,-500.0,0.00026577,3]
[356118187,1741909998149,-500.0,0.00026577,3]
[356118188,1741909998159,-500.0,0.00026577,3]
[356118189,1741909998169,-1757.22,0.00026577,3]
[356118190,1741909998180,-500.0,0.00026577,3]
[356118191,1741909998190,-500.0,0.00026577,3]
[356118192,1741909998200,-1801.77,0.00026577,3]
[356118193,1741909998210,-500.0,0.00026577,3]
[356118194,1741909998220,-500.0,0.00026577,3]
[356118195,1741909998230,-500.0,0.00026577,3]
[356118196,1741909998240,-1126.34,0.00026577,3]
[356118197,1741909998250,-501.8,0.00026577,3]
[356118198,1741909998260,-500.0,0.00026577,3]
[356118199,1741909998270,-1962.2,0.00026577,3]
[356118200,1741909998280,-775.14,0.00026577,3]
[356118201,1741909998290,-500.0,0.00026577,3]
[356118202,1741909998300,-552.77,0.00026577,3]
[356118203,1741909998310,-500.0,0.00026577,3]
[356118204,1741909998319,-1313.89,0.00026577,3]
[356118205,1741909998329,-500.0,0.00026577,3]
[356118206,1741909998340,-500.0,0.00026577,3]
[356118207,1741909998350,-500.0,0.00026577,3]
[356118208,1741909998360,-500.0,0.00026577,3]
[356118209,1741909998370,-1156.75,0.00026577,3]
[356118210,1741909998380,-500.0,0.00026577,3]
[356118211,1741909998391,-827.88,0.00026577,3]
[356118212,1741909998401,-500.0,0.00026577,3]
[356118213,1741909998411,-390.38796479,0.00026577,3]
[356118214,1741909998421,-895.24,0.00026577,3]
[356118215,1741909998430,-500.0,0.00026577,3]
[356118216,1741909998440,-1012.87,0.00026577,3]
[356118217,1741909998449,-1069.23,0.00026577,3]
[356118218,1741909998460,-605.55,0.00026577,3]
[356118219,1741909998472,-500.0,0.00026577,3]
[356118220,1741909998483,-1008.81,0.00026577,3]
[356118221,1741909998493,-866.31,0.00026577,3]
[356118222,1741909998503,-500.0,0.00026577,3]
[356118223,1741909998514,-500.0,0.00026577,3]
[356118224,1741909998524,-500.0,0.00026586,3]
[356118225,1741909998535,-500.0,0.00026586,3]
[356118226,1741909998546,-500.0,0.00026586,3]
[356118227,1741909998556,-500.0,0.00026586,3]
[356118228,1741909998566,-527.55,0.00026586,3]
[356118229,1741909998576,-500.0,0.00026586,3]
[356118230,1741909998587,-862.02,0.00026586,3]
[356118231,1741909998597,-500.0,0.00026586,3]
[356118232,1741909998608,-1562.75,0.00026586,3]
[356118233,1741909998618,-500.0,0.00026586,3]
[356118234,1741909998628,-500.0,0.00026586,3]
[356118235,1741909998638,-500.0,0.00026586,3]
[356118236,1741909998647,-500.0,0.00026586,3]
[356118237,1741909998657,-500.0,0.00026586,3]
[356118238,1741909998667,-500.0,0.00026586,3]
[356118239,1741909998677,-500.0,0.00026586,3]
[356118240,1741909998686,-526.4,0.00026586,3]
[356118241,1741909998696,-500.0,0.00026586,3]
[356118242,1741909998706,-886.28,0.00026586,3]
[356118243,1741909998716,-500.0,0.00026586,3]
[356118244,1741909998726,-500.0,0.00026586,3]
[356118245,1741909998736,-1148.96,0.00026586,3]
[356118246,1741909998746,-500.0,0.00026586,3]
[356118247,1741909998756,-500.0,0.00026586,3]
[356118248,1741909998766,-521.42,0.00026586,3]
[356118249,1741909998776,-500.0,0.00026586,3]
[356118250,1741909998785,-500.0,0.00026586,3]
[356118251,1741909998795,-535.24,0.00026586,3]
[356118252,1741909998805,-500.0,0.00026586,3]
[356118253,1741909998815,-500.0,0.00026586,3]
[356118254,1741909998824,-500.0,0.00026586,3]
[356118255,1741909998834,-500.0,0.00026586,3]
[356118256,1741909998843,-630.29,0.00026586,3]
[356118257,1741909998853,-500.0,0.00026586,3]
[356118258,1741909998863,-636.65,0.00026586,3]
[356118259,1741909998873,-500.0,0.00026586,3]
[356118260,1741909998883,-760.49,0.00026586,3]
[356118261,1741909998893,-500.0,0.00026586,3]
[356118262,1741909998902,-500.0,0.00026586,3]
[356118263,1741909998912,-766.74,0.00026586,3]
[356118264,1741909998922,-500.0,0.00026586,3]
[356118265,1741909998932,-1057.73,0.00026586,3]
[356118266,1741909998941,-500.0,0.00026586,3]
[356118267,1741909998951,-500.0,0.00026586,3]
[356118268,1741909998960,-760.28,0.00026586,3]
[356118269,1741909998970,-972.22,0.00026586,3]
[356118270,1741909998980,-1260.65,0.00026586,3]
[356118271,1741909998990,-500.0,0.00026586,3]
[356118272,1741909998999,-500.0,0.00026586,3]
[356118273,1741909999010,-500.0,0.00026586,3]
[356118274,1741909999020,-702.58,0.00026586,3]
[356118275,1741909999030,-500.0,0.00026586,3]
[356118276,1741909999040,-500.0,0.00026586,3]
[356118277,1741909999050,-556.69,0.00026586,3]
[356118278,1741909999060,-500.0,0.00026586,3]
[356118279,1741909999069,-1075.01,0.00026586,3]
[356118280,1741909999079,-500.0,0.00026586,3]
[356118281,1741909999089,-500.0,0.00026586,3]
[356118282,1741909999099,-2046.3,0.00026586,3]
[356118283,1741909999107,-500.0,0.00026586,3]
[356118284,1741909999233,-500.0,0.00026586,3]
[356118285,1741909999243,-500.0,0.00026586,3]
[356118286,1741909999253,-500.0,0.00026586,3]
[356118287,1741909999263,-574.02,0.00026586,3]
[356118288,1741909999274,-1112.24,0.00026586,3]
[356118289,1741909999284,-500.0,0.00026586,3]
[356118290,1741909999294,-566.64,0.00026586,3]
[356118291,1741909999304,-500.0,0.00026586,3]
[356118292,1741909999313,-500.0,0.00026586,3]
[356118293,1741909999322,-500.0,0.00026586,3]
[356118294,1741909999332,-1293.55,0.00026586,3]
[356118295,1741909999343,-2132.45,0.00026586,3]
[356118296,1741909999352,-500.0,0.00026586,3]
[356118297,1741909999362,-500.0,0.00026586,3]
[356118298,1741909999372,-500.0,0.00026586,3]
[356118299,1741909999381,-500.0,0.00026586,3]
[356118300,1741909999391,-500.0,0.00026586,3]
[356118301,1741909999401,-1111.12,0.00026586,3]
[356118302,1741909999411,-1817.19,0.00026586,3]
[356118303,1741909999420,-639.93,0.00026586,3]
[356118304,1741909999430,-500.0,0.00026586,3]
[356118305,1741909999439,-500.0,0.00026586,3]
[356118306,1741909999449,-500.0,0.00026586,3]
[356118307,1741909999459,-293.31844608,0.00026586,3]
[356118308,1741909999469,-525.47,0.00026586,3]
[356118309,1741909999480,-805.69,0.00026586,3]
[356118310,1741909999490,-500.0,0.00026586,3]
[356118311,1741909999500,-1134.12,0.00026586,3]
[356118312,1741909999509,-1845.17,0.00026586,3]
[356118313,1741909999519,-500.0,0.00026586,3]
[356118314,1741909999528,-835.91,0.00026586,3]
[356118315,1741909999538,-4021.1,0.00026587,3]
[356118316,1741909999547,-1149.36,0.00026587,3]
[356118317,1741909999556,-686.34,0.00026587,3]
[356118318,1741909999566,-1365.3,0.00026587,3]
[356118319,1741909999576,-500.0,0.00026587,3]
[356118320,1741909999586,-658.04,0.00026587,3]
[356118321,1741909999595,-1356.05,0.00026587,3]
[356118322,1741909999605,-530.22,0.00026587,3]
[356118323,1741909999614,-517.5,0.00026587,3]
[356118324,1741909999623,-500.0,0.00026587,3]
[356118325,1741909999634,-1735.89,0.00026587,3]
[356118326,1741909999643,-308.73,0.00026588,2]
[356118327,1741909999652,-718.97,0.00026595,3]
[356118328,1741909999661,-619.96,0.00026603,3]
[356118329,1741909999670,-599.39,0.00026603,3]
[356118330,1741909999680,-568.45,0.00026603,3]
[356118331,1741909999690,-596.06,0.00026603,3]
[356118332,1741909999699,-500.0,0.00026603,3]
[356118333,1741909999709,-575.02,0.00026603,3]
[356118334,1741909999718,-500.0,0.00026603,3]
[356118335,1741909999728,-500.0,0.00026603,3]
[356118336,1741909999738,-500.0,0.00026603,3]
[356118337,1741909999748,-614.09,0.00026603,3]
[356118338,1741909999757,-1905.32,0.00026603,3]
[356118339,1741909999767,-500.0,0.00026603,3]
[356118340,1741909999777,-317.94473414,0.00026603,3]
[356118341,1741909999786,-505.01,0.00026603,3]
[356118342,1741909999796,-1834.44,0.00026603,3]
[356118343,1741909999805,-500.0,0.00026603,3]
[356118344,1741909999815,-1115.1,0.00026603,3]
[356118345,1741909999824,-500.0,0.00026603,3]
[356118346,1741909999834,-1673.6,0.00026603,3]
[356118347,1741909999845,-1557.42,0.00026603,3]
[356118348,1741909999855,-512.73,0.00026603,3]
[356118349,1741909999864,-808.39,0.00026603,3]
[356118350,1741909999874,-500.0,0.00026603,3]
[356118351,1741909999883,-500.0,0.00026603,3]
[356118352,1741909999893,-500.0,0.00026603,3]
[356118353,1741909999903,-1409.73,0.00026603,3]
[356118354,1741909999912,-586.53,0.00026603,3]
[356118355,1741909999922,-649.95,0.00026603,3]
[356118356,1741909999932,-500.0,0.00026603,3]
[356118357,1741909999941,-708.03,0.00026603,3]
[356118358,1741909999951,-879.64,0.00026604,3]
[356118359,1741909999962,-500.0,0.00026604,3]
[356118360,1741909999973,-535.9,0.00026604,3]
[356118361,1741909999984,-621.59,0.00026604,3]
[356118362,1741909999994,-548.81,0.00026604,3]
[356118363,1741910000004,-4044.81,0.00026604,3]
[356118364,1741910000014,-1424.33,0.00026604,3]
[356118365,1741910000025,-500.0,0.00026604,3]
[356118366,1741910000035,-500.0,0.00026604,3]
[356118367,1741910000045,-1007.44,0.00026604,3]
[356118368,1741910000055,-1472.58,0.00026604,3]
[356118369,1741910000065,-500.0,0.00026604,3]
[356118370,1741910000075,-1336.48,0.00026604,3]
[356118371,1741910000085,-1207.46,0.00026604,3]
[356118372,1741910000095,-1460.13,0.00026604,3]
[356118373,1741910000105,-1240.71,0.00026604,3]
[356118374,1741910000116,-500.0,0.00026604,3]
[356118375,1741910000125,-1560.68,0.00026604,3]
[356118376,1741910000135,-500.0,0.00026604,3]
[356118377,1741910000146,-500.0,0.00026604,3]
[356118378,1741910000156,-1715.23,0.00026604,3]
[356118379,1741910000166,-500.0,0.00026604,3]
[356118380,1741910000176,-500.0,0.00026604,3]
[356118381,1741910000186,-500.0,0.00026604,3]
[356118382,1741910000196,-500.0,0.00026604,3]
[356118383,1741910000206,-500.0,0.00026604,3]
[356118384,1741910000216,-500.0,0.00026604,3]
[356118385,1741910000226,-866.31,0.00026604,3]
[356118386,1741910000236,-500.0,0.00026604,3]
[356118387,1741910000246,-528.68,0.00026604,3]